fUSD/lending_fUSD_20250111
["ID","MTS","AMOUNT","RATE_DAILY","PERIOD"]
[348536025,1736608246713,-500.0,0.00010433,2]
[348536026,1736608246722,-500.0,0.00010433,2]
[348536027,1736608246731,-500.0,0.00010433,2]
[348536028,1736608246741,-647.59,0.00010433,2]
[348536029,1736608246750,-505.59883384,0.00010433,2]
[348536030,1736608246759,-229.25374229,0.00010433,2]
[348536031,1736608246769,-500.0,0.00010433,2]
[348536032,1736608246779,-653.02,0.00010433,2]
[348536033,1736608246789,-500.0,0.00010433,2]
[348536034,1736608246798,-609.3,0.00010433,2]
[348536035,1736608246808,-500.0,0.00010433,2]
[348536036,1736608246818,-2239.21,0.00010433,2]
[348536037,1736608246827,-612.51,0.00010433,2]
[348536038,1736608246837,-500.0,0.00010433,2]
[348536039,1736608246847,-305.01297713,0.00010433,2]
[348536040,1736608246857,-500.0,0.00010433,2]
[348536041,1736608246866,-500.0,0.00010433,2]
[348536042,1736608246876,-566.75,0.00010433,2]
[348536043,1736608246885,-1506.62,0.00010433,2]
[348536044,1736608246894,-860.06,0.00010433,2]
[348536045,1736608246903,-1044.66,0.00010433,2]
[348536046,1736608246912,-1646.73,0.00010433,2]
[348536047,1736608246922,-750.25,0.00010433,2]
[348536048,1736608246931,-1078.06,0.00010433,2]
[348536049,1736608246940,-556.05,0.00010433,2]
[348536050,1736608246949,-600.58,0.00010433,2]
[348536051,1736608246959,-907.77,0.00010433,2]
[348536052,1736608246968,-590.19,0.00010433,2]
[348536053,1736608246977,-647.9,0.00010433,2]
[348536054,1736608246987,-1472.22,0.00010433,2]
[348536055,1736608246997,-500.0,0.00010433,2]
[348536056,1736608247007,-689.66,0.00010433,2]
[348536057,1736608247016,-578.29,0.00010433,2]
[348536058,1736608247026,-739.05,0.00010433,2]
[348536059,1736608247035,-500.0,0.00010433,2]
[348536060,1736608247044,-358.07449129,0.00010433,2]
[348536061,1736608247054,-843.07,0.00010433,2]
[348536062,1736608247063,-543.83295,0.00010433,2]
[348536063,1736608247072,-500.0,0.00010433,2]
[348536064,1736608247082,-500.0,0.00010433,2]
[348536065,1736608247091,-631.2,0.00010433,2]
[348536066,1736608247101,-575.137924,0.00010433,2]
[348536067,1736608247110,-500.0,0.00010433,2]
[348536068,1736608247121,-572.06,0.00010433,2]
[348536069,1736608247130,-1966.48,0.00010433,2]
[348536070,1736608247139,-610.88,0.00010433,2]
[348536071,1736608247149,-1333.49,0.00010433,2]
[348536072,1736608247158,-500.0,0.00010434,2]
[348536073,1736608247167,-500.0,0.00010434,2]
[348536074,1736608247177,-500.0,0.00010434,2]
[348536075,1736608247186,-500.0,0.00010434,2]
[348536076,1736608247195,-500.0,0.00010434,2]
[348536077,1736608247205,-500.0,0.00010434,2]
[348536078,1736608247214,-500.0,0.00010434,2]
[348536079,1736608247223,-500.0,0.00010435,2]
[348536080,1736608247233,-500.0,0.00010435,2]
[348536081,1736608247242,-253.87862417,0.00010435,2]
[348536082,1736608247251,-500.0,0.00010435,2]
[348536083,1736608247260,-622.49129708,0.00010435,2]
[348536084,1736608247269,-500.0,0.00010435,2]
[348536085,1736608247279,-500.0,0.00010435,2]
[348536086,1736608247288,-500.0,0.00010435,2]
[348536087,1736608247298,-500.0,0.00010435,2]
[348536088,1736608247307,-500.0,0.00010435,2]
[348536089,1736608247316,-500.0,0.00010435,2]
[348536090,1736608247326,-500.0,0.00010435,2]
[348536091,1736608247336,-500.0,0.00010435,2]
[348536092,1736608247345,-500.0,0.00010435,2]
[348536093,1736608247355,-500.0,0.00010435,2]
[348536094,1736608247364,-500.0,0.00010435,2]
[348536095,1736608247378,-500.0,0.00010435,2]
[348536096,1736608247388,-500.0,0.00010435,2]
[348536097,1736608247397,-500.0,0.00010435,2]
[348536098,1736608247407,-500.0,0.00010435,2]
[348536099,1736608247418,-500.0,0.00010435,2]
[348536100,1736608247428,-500.0,0.00010435,2]
[348536101,1736608247438,-500.0,0.00010435,2]
[348536102,1736608247449,-500.0,0.00010435,2]
[348536103,1736608247459,-500.0,0.00010435,2]
[348536104,1736608247468,-500.0,0.00010435,2]
[348536105,1736608247477,-384.98026573,0.00010435,2]
[348536106,1736608247487,-500.0,0.00010435,2]
[348536107,1736608247497,-500.0,0.00010435,2]
[348536108,1736608247506,-500.0,0.00010435,2]
[348536109,1736608247515,-500.0,0.00010435,2]
[348536110,1736608247524,-563.93,0.00010435,2]
[348536111,1736608247535,-500.0,0.00010435,2]
[348536112,1736608247546,-449.68784831,0.00010435,2]
[348536113,1736608247556,-500.0,0.00010435,2]
[348536114,1736608247565,-500.0,0.00010435,2]
[348536115,1736608247575,-631.12,0.00010435,2]
[348536116,1736608247584,-500.0,0.00010435,2]
[348536117,1736608247594,-500.0,0.00010435,2]
[348536118,1736608247603,-500.0,0.00010435,2]
[348536119,1736608247614,-500.0,0.00010435,2]
[348536120,1736608247624,-500.0,0.00010438,2]
[348536121,1736608247634,-500.0,0.00010438,2]
[348536122,1736608247643,-1000.0,0.00010438,2]
[348536123,1736608247653,-500.0,0.00010438,2]
[348536124,1736608247662,-500.0,0.00010438,2]
[348536125,1736608247671,-500.0,0.00010438,2]
[348536126,1736608247681,-920.43,0.00010438,2]
[348536127,1736608247691,-551.41,0.00010547,2]
[348536128,1736608247700,-500.0,0.00010547,2]
[348536129,1736608247710,-844.04,0.00010547,2]
[348536130,1736608247719,-500.0,0.00010547,2]
[348536131,1736608247729,-1249.34,0.00010547,2]
[348536132,1736608247738,-693.31,0.00010547,2]
[348536133,1736608247747,-1109.44,0.00010547,2]
[348536134,1736608247757,-515.87,0.00010547,2]
[348536135,1736608247766,-551.85,0.00010547,2]
[348536136,1736608247776,-500.0,0.00010547,2]
[348536137,1736608247785,-500.0,0.00010547,2]
[348536138,1736608247794,-500.0,0.00010547,2]
[348536139,1736608247803,-500.0,0.00010547,2]
[348536140,1736608247813,-500.0,0.00010547,2]
[348536141,1736608247822,-500.0,0.00010547,2]
[348536142,1736608247832,-500.0,0.00010547,2]
[348536143,1736608247841,-607.63,0.00010547,2]
[348536144,1736608247850,-500.0,0.00010547,2]
[348536145,1736608247860,-568.09,0.00010547,2]
[348536146,1736608247869,-500.0,0.00010547,2]
[348536147,1736608247878,-500.0,0.00010547,2]
[348536148,1736608247888,-961.31,0.00010547,2]
[348536149,1736608247897,-3800.68,0.00010547,2]
[348536150,1736608247907,-500.0,0.00010547,2]
[348536151,1736608247916,-772.24,0.00010571,2]
[348536152,1736608247925,-500.0,0.00010707,2]
[348536153,1736608247935,-500.0,0.00010707,2]
[348536154,1736608247944,-500.0,0.00010707,2]
[348536155,1736608247954,-500.0,0.00010707,2]
[348536156,1736608247963,-647.59,0.00010707,2]
[348536157,1736608247972,-500.0,0.00010707,2]
[348536158,1736608247982,-500.0,0.00010707,2]
[348536159,1736608247991,-653.02,0.00010707,2]
[348536160,1736608248001,-500.0,0.00010707,2]
[348536161,1736608248011,-609.3,0.00010707,2]
[348536162,1736608248020,-500.0,0.00010707,2]
[348536163,1736608248029,-2239.21,0.00010707,2]
[348536164,1736608248094,-612.51,0.00010707,2]
[348536165,1736608248103,-500.0,0.00010707,2]
[348536166,1736608248114,-500.0,0.00010707,2]
[348536167,1736608248123,-715.75,0.00010707,2]
[348536168,1736608248132,-500.0,0.00010707,2]
[348536169,1736608248141,-566.75,0.00010707,2]
[348536170,1736608248150,-1506.62,0.00010707,2]
[348536171,1736608248159,-860.06,0.00010707,2]
[348536172,1736608248168,-1044.66,0.00010707,2]
[348536173,1736608248177,-1646.73,0.00010707,2]
[348536174,1736608248187,-532.45,0.00010707,2]
[348536175,1736608248196,-750.25,0.00010707,2]
[348536176,1736608248205,-1078.06,0.00010707,2]
[348536177,1736608248214,-600.58,0.00010707,2]
[348536178,1736608248223,-556.05,0.00010707,2]
[348536179,1736608248232,-907.77,0.00010707,2]
[348536180,1736608248242,-590.19,0.00010707,2]
[348536181,1736608248251,-647.9,0.00010707,2]
[348536182,1736608248260,-1472.22,0.00010707,2]
[348536183,1736608248270,-500.0,0.00010707,2]
[348536184,1736608248279,-689.66,0.00010707,2]
[348536185,1736608248288,-578.29,0.00010707,2]
[348536186,1736608248298,-739.05,0.00010707,2]
[348536187,1736608248307,-500.0,0.00010707,2]
[348536188,1736608248317,-843.07,0.00010707,2]
[348536189,1736608248327,-543.83295,0.00010707,2]
[348536190,1736608248336,-500.0,0.00010707,2]
[348536191,1736608248346,-500.0,0.00010707,2]
[348536192,1736608248355,-1160.78,0.00010707,2]
[348536193,1736608248364,-696.74,0.00010707,2]
[348536194,1736608248374,-631.2,0.00010707,2]
[348536195,1736608248384,-575.137924,0.00010707,2]
[348536196,1736608248393,-500.0,0.00010707,2]
[348536197,1736608248401,-572.06,0.00010707,2]
[348536198,1736608248411,-610.88,0.00010707,2]
[348536199,1736608248421,-985.94,0.00010708,2]
[348536200,1736608248430,-250.93,0.00010708,2]
[348536201,1736608248439,-500.0,0.00010708,2]
[348536202,1736608248449,-500.0,0.00010708,2]
[348536203,1736608248458,-500.0,0.00010708,2]
[348536204,1736608248468,-500.0,0.00010708,2]
[348536205,1736608248479,-500.0,0.00010708,2]
[348536206,1736608248488,-500.0,0.00010708,2]
[348536207,1736608248497,-500.0,0.00010709,2]
[348536208,1736608248507,-500.0,0.00010709,2]
[348536209,1736608248516,-500.0,0.00010709,2]
[348536210,1736608248525,-500.0,0.00010709,2]
[348536211,1736608248534,-500.0,0.00010709,2]
[348536212,1736608248544,-500.0,0.00010709,2]
[348536213,1736608248554,-500.0,0.00010709,2]
[348536214,1736608248563,-500.0,0.00010709,2]
[348536215,1736608248573,-500.0,0.00010709,2]
[348536216,1736608248583,-500.0,0.00010709,2]
[348536217,1736608248593,-500.0,0.00010709,2]
[348536218,1736608248602,-595.6311653,0.00010709,2]
[348536219,1736608248613,-500.0,0.00010709,2]
[348536220,1736608248623,-500.0,0.00010709,2]
[348536221,1736608248632,-500.0,0.00010709,2]
[348536222,1736608248641,-500.0,0.00010709,2]
[348536223,1736608248651,-500.0,0.00010709,2]
[348536224,1736608248662,-500.0,0.00010709,2]
[348536225,1736608248672,-500.0,0.00010709,2]
[348536226,1736608248682,-500.0,0.00010709,2]
[348536227,1736608248691,-500.0,0.00010709,2]
[348536228,1736608248700,-500.0,0.00010709,2]
[348536229,1736608248711,-500.0,0.00010709,2]
[348536230,1736608248720,-500.0,0.00010709,2]
[348536231,1736608248730,-563.93,0.00010709,2]
[348536232,1736608248739,-500.0,0.00010709,2]
[348536233,1736608248748,-500.0,0.00010709,2]
[348536234,1736608248758,-500.0,0.00010709,2]
[348536235,1736608248768,-631.12,0.00010709,2]
[348536236,1736608248778,-500.0,0.00010709,2]
[348536237,1736608248788,-500.0,0.00010709,2]
[348536238,1736608248797,-500.0,0.00010709,2]
[348536239,1736608248807,-1000.0,0.00010712,2]
[348536240,1736608248817,-500.0,0.00010712,2]
[348536241,1736608248826,-500.0,0.00010712,2]
[348536242,1736608248838,-920.43,0.00010712,2]
[348536243,1736608248848,-1163.13,0.0001082,2]
[348536244,1736608248857,-551.41,0.00010821,2]
[348536245,1736608248867,-500.0,0.00010821,2]
[348536246,1736608248877,-844.04,0.00010821,2]
[348536247,1736608248886,-500.0,0.00010821,2]
[348536248,1736608248895,-1249.34,0.00010821,2]
[348536249,1736608248905,-693.31,0.00010821,2]
[348536250,1736608248914,-1109.44,0.00010821,2]
[348536251,1736608248924,-515.87,0.00010821,2]
[348536252,1736608248934,-551.85,0.00010821,2]
[348536253,1736608248943,-500.0,0.00010821,2]
[348536254,1736608248953,-500.0,0.00010821,2]
[348536255,1736608248962,-500.0,0.00010821,2]
[348536256,1736608248971,-500.0,0.00010821,2]
[348536257,1736608248981,-500.0,0.00010821,2]
[348536258,1736608248991,-500.0,0.00010821,2]
[348536259,1736608249000,-500.0,0.00010821,2]
[348536260,1736608249009,-607.63,0.00010821,2]
[348536261,1736608249018,-500.0,0.00010821,2]
[348536262,1736608249027,-568.09,0.00010821,2]
[348536263,1736608249036,-500.0,0.00010821,2]
[348536264,1736608249046,-500.0,0.00010821,2]
[348536265,1736608249055,-961.31,0.00010821,2]
[348536266,1736608249064,-3800.68,0.00010821,2]
[348536267,1736608249073,-500.0,0.00010821,2]
[348536268,1736608249083,-12500.0,0.0001088,2]
[348536269,1736608249095,-999.0,0.00010958,2]
[348536270,1736608249104,-500.0,0.00010958,2]
[348536271,1736608249113,-150.0,0.00010959,2]
[348536272,1736608249122,-326.60775899,0.0001097,2]
[348536273,1736608249131,-326.60775899,0.0001097,2]
[348536274,1736608249140,-519.88218465,0.00010973,2]
[348536275,1736608249150,-326.60775899,0.00010973,2]
[348536276,1736608249159,-200.0,0.00010974,2]
[348536277,1736608249168,-326.60775899,0.00010975,2]
[348536278,1736608249177,-326.60775899,0.00010977,2]
[348536279,1736608249186,-200.0,0.00010977,2]
[348536280,1736608249195,-200.0,0.00010978,2]
[348536281,1736608249204,-519.88218465,0.00010979,2]
[348536282,1736608249213,-500.0,0.00010981,2]
[348536283,1736608249222,-500.0,0.00010981,2]
[348536284,1736608249232,-500.0,0.00010981,2]
[348536285,1736608249241,-500.0,0.00010981,2]
[348536286,1736608249251,-647.59,0.00010981,2]
[348536287,1736608249260,-500.0,0.00010981,2]
[348536288,1736608249270,-500.0,0.00010981,2]
[348536289,1736608249279,-653.02,0.00010981,2]
[348536290,1736608249289,-500.0,0.00010981,2]
[348536291,1736608249299,-609.3,0.00010981,2]
[348536292,1736608249309,-500.0,0.00010981,2]
[348536293,1736608249318,-2239.21,0.00010981,2]
[348536294,1736608249327,-612.51,0.00010981,2]
[348536295,1736608249338,-500.0,0.00010981,2]
[348536296,1736608249348,-500.0,0.00010981,2]
[348536297,1736608249358,-715.75,0.00010981,2]
[348536298,1736608249367,-500.0,0.00010981,2]
[348536299,1736608249381,-566.75,0.00010981,2]
[348536300,1736608249390,-1506.62,0.00010981,2]
[348536301,1736608249399,-860.06,0.00010981,2]
[348536302,1736608249409,-1044.66,0.00010981,2]
[348536303,1736608249421,-1646.73,0.00010981,2]
[348536304,1736608249431,-532.45,0.00010981,2]
[348536305,1736608249440,-750.25,0.00010981,2]
[348536306,1736608249450,-1078.06,0.00010981,2]
[348536307,1736608249460,-600.58,0.00010981,2]
[348536308,1736608249470,-556.05,0.00010981,2]
[348536309,1736608249479,-907.77,0.00010981,2]
[348536310,1736608249489,-590.19,0.00010981,2]
[348536311,1736608249499,-647.9,0.00010981,2]
[348536312,1736608249509,-1472.22,0.00010981,2]
[348536313,1736608249519,-500.0,0.00010981,2]
[348536314,1736608249529,-689.66,0.00010981,2]
[348536315,1736608249539,-578.29,0.00010981,2]
[348536316,1736608249548,-739.05,0.00010981,2]
[348536317,1736608249558,-500.0,0.00010981,2]
[348536318,1736608249567,-843.07,0.00010981,2]
[348536319,1736608249577,-543.83295,0.00010981,2]
[348536320,1736608249586,-500.0,0.00010981,2]
[348536321,1736608249596,-500.0,0.00010981,2]
[348536322,1736608249607,-1160.78,0.00010981,2]
[348536323,1736608249617,-696.74,0.00010981,2]
[348536324,1736608249627,-631.2,0.00010981,2]
[348536325,1736608249636,-575.137924,0.00010981,2]
[348536326,1736608249646,-500.0,0.00010981,2]
[348536327,1736608249656,-572.06,0.00010981,2]
[348536328,1736608249666,-610.88,0.00010981,2]
[348536329,1736608249675,-519.88218465,0.00010982,2]
[348536330,1736608249684,-500.0,0.00010982,2]
[348536331,1736608249694,-500.0,0.00010982,2]
[348536332,1736608249703,-500.0,0.00010982,2]
[348536333,1736608249712,-500.0,0.00010982,2]
[348536334,1736608249722,-500.0,0.00010982,2]
[348536335,1736608249731,-500.0,0.00010983,2]
[348536336,1736608249740,-500.0,0.00010983,2]
[348536337,1736608249750,-500.0,0.00010983,2]
[348536338,1736608249759,-500.0,0.00010983,2]
[348536339,1736608249768,-500.0,0.00010983,2]
[348536340,1736608249778,-500.0,0.00010983,2]
[348536341,1736608249787,-500.0,0.00010983,2]
[348536342,1736608249795,-500.0,0.00010983,2]
[348536343,1736608249805,-500.0,0.00010983,2]
[348536344,1736608249814,-500.0,0.00010983,2]
[348536345,1736608249823,-500.0,0.00010983,2]
[348536346,1736608249832,-500.0,0.00010983,2]
[348536347,1736608249843,-500.0,0.00010983,2]
[348536348,1736608249852,-500.0,0.00010983,2]
[348536349,1736608249862,-500.0,0.00010983,2]
[348536350,1736608249871,-500.0,0.00010983,2]
[348536351,1736608249881,-500.0,0.00010983,2]
[348536352,1736608249891,-500.0,0.00010983,2]
[348536353,1736608249900,-500.0,0.00010983,2]
[348536354,1736608249910,-500.0,0.00010983,2]
[348536355,1736608249920,-384.95,0.00010983,2]
[348536356,1736608249930,-500.0,0.00010983,2]
[348536357,1736608249939,-563.93,0.00010983,2]
[348536358,1736608249949,-500.0,0.00010983,2]
[348536359,1736608249959,-500.0,0.00010983,2]
[348536360,1736608249970,-631.12,0.00010983,2]
[348536361,1736608249979,-500.0,0.00010983,2]
[348536362,1736608249988,-500.0,0.00010983,2]
[348536363,1736608249998,-500.0,0.00010983,2]
[348536364,1736608250007,-326.60775899,0.00010984,2]
[348536365,1736608250017,-200.0,0.00010985,2]
[348536366,1736608250027,-500.0,0.00010986,2]
[348536367,1736608250036,-500.0,0.00010986,2]
[348536368,1736608250047,-920.43,0.00010986,2]
[348536369,1736608250057,-519.88218465,0.00010988,2]
[348536370,1736608250067,-519.88218465,0.00010994,2]
[348536371,1736608250077,-519.88218465,0.00010994,2]
[348536372,1736608250087,-5321.80812882,0.00011,2]
[348536373,1736608250097,-382.43,0.00011014,2]
[348536374,1736608250106,-150.0,0.00011072,2]
[348536375,1736608250115,-3896.0,0.00011072,2]
[348536376,1736608250125,-9626.0,0.00011072,2]
[348536377,1736608250134,-551.41,0.00011095,2]
[348536378,1736608250143,-500.0,0.00011095,2]
[348536379,1736608250153,-844.04,0.00011095,2]
[348536380,1736608250164,-500.0,0.00011095,2]
[348536381,1736608250173,-1249.34,0.00011095,2]
[348536382,1736608250183,-693.31,0.00011095,2]
[348536383,1736608250192,-1109.44,0.00011095,2]
[348536384,1736608250202,-515.87,0.00011095,2]
[348536385,1736608250212,-551.85,0.00011095,2]
[348536386,1736608250223,-500.0,0.00011095,2]
[348536387,1736608250233,-500.0,0.00011095,2]
[348536388,1736608250243,-500.0,0.00011095,2]
[348536389,1736608250253,-500.0,0.00011095,2]
[348536390,1736608250262,-500.0,0.00011095,2]
[348536391,1736608250272,-500.0,0.00011095,2]
[348536392,1736608250281,-500.0,0.00011095,2]
[348536393,1736608250291,-607.63,0.00011095,2]
[348536394,1736608250300,-500.0,0.00011095,2]
[348536395,1736608250311,-568.09,0.00011095,2]
[348536396,1736608250320,-500.0,0.00011095,2]
[348536397,1736608250329,-500.0,0.00011095,2]
[348536398,1736608250340,-961.31,0.00011095,2]
[348536399,1736608250350,-3800.68,0.00011095,2]
[348536400,1736608250359,-500.0,0.00011095,2]
[348536401,1736608250370,-150.0,0.00011118,2]
[348536402,1736608250382,-180.073,0.00011118,2]
[348536403,1736608250392,-200.0,0.000112,2]
[348536404,1736608250404,-152.33,0.00011208,2]
[348536405,1736608250415,-2014.0,0.0001125,2]
[348536406,1736608250424,-1268.0,0.0001125,2]
[348536407,1736608250434,-150.0,0.0001125,2]
[348536408,1736608250443,-635.0,0.0001125,2]
[348536409,1736608250455,-566.0,0.0001125,2]
[348536410,1736608250465,-1861.0,0.0001125,2]
[348536411,1736608250474,-1259.0,0.0001125,2]
[348536412,1736608250484,-915.0,0.0001125,2]
[348536413,1736608250494,-2944.0,0.0001125,2]
[348536414,1736608250504,-820.0,0.0001125,2]
[348536415,1736608250513,-537.0,0.0001125,2]
[348536416,1736608250523,-3978.0,0.0001125,2]
[348536417,1736608250532,-500.0,0.00011255,2]
[348536418,1736608250542,-1163.13,0.00011255,2]
[348536419,1736608250551,-500.0,0.00011255,2]
[348536420,1736608250562,-500.0,0.00011255,2]
[348536421,1736608250571,-500.0,0.00011255,2]
[348536422,1736608250582,-647.59,0.00011255,2]
[348536423,1736608250592,-500.0,0.00011255,2]
[348536424,1736608250602,-500.0,0.00011255,2]
[348536425,1736608250613,-653.02,0.00011255,2]
[348536426,1736608250624,-500.0,0.00011255,2]
[348536427,1736608250634,-609.3,0.00011255,2]
[348536428,1736608250643,-500.0,0.00011255,2]
[348536429,1736608250652,-2239.21,0.00011255,2]
[348536430,1736608250663,-612.51,0.00011255,2]
[348536431,1736608250672,-500.0,0.00011255,2]
[348536432,1736608250683,-500.0,0.00011255,2]
[348536433,1736608250692,-715.75,0.00011255,2]
[348536434,1736608250702,-500.0,0.00011255,2]
[348536435,1736608250712,-566.75,0.00011255,2]
[348536436,1736608250722,-1506.62,0.00011255,2]
[348536437,1736608250732,-860.06,0.00011255,2]
[348536438,1736608250742,-1044.66,0.00011255,2]
[348536439,1736608250751,-1646.73,0.00011255,2]
[348536440,1736608250761,-532.45,0.00011255,2]
[348536441,1736608250770,-750.25,0.00011255,2]
[348536442,1736608250781,-1078.06,0.00011255,2]
[348536443,1736608250791,-600.58,0.00011255,2]
[348536444,1736608250801,-556.05,0.00011255,2]
[348536445,1736608250812,-907.77,0.00011255,2]
[348536446,1736608250821,-590.19,0.00011255,2]
[348536447,1736608250832,-647.9,0.00011255,2]
[348536448,1736608250843,-1472.22,0.00011255,2]
[348536449,1736608250853,-500.0,0.00011255,2]
[348536450,1736608250864,-689.66,0.00011255,2]
[348536451,1736608250874,-578.29,0.00011255,2]
[348536452,1736608250883,-739.05,0.00011255,2]
[348536453,1736608250893,-500.0,0.00011255,2]
[348536454,1736608250903,-843.07,0.00011255,2]
[348536455,1736608250913,-543.83295,0.00011255,2]
[348536456,1736608250923,-500.0,0.00011255,2]
[348536457,1736608250933,-500.0,0.00011255,2]
[348536458,1736608250943,-1160.78,0.00011255,2]
[348536459,1736608250954,-696.74,0.00011255,2]
[348536460,1736608250965,-631.2,0.00011255,2]
[348536461,1736608250975,-575.137924,0.00011255,2]
[348536462,1736608250984,-500.0,0.00011255,2]
[348536463,1736608250994,-572.06,0.00011255,2]
[348536464,1736608251003,-500.0,0.00011256,2]
[348536465,1736608251013,-500.0,0.00011256,2]
[348536466,1736608251023,-500.0,0.00011256,2]
[348536467,1736608251032,-500.0,0.00011256,2]
[348536468,1736608251042,-500.0,0.00011256,2]
[348536469,1736608251052,-500.0,0.00011257,2]
[348536470,1736608251063,-500.0,0.00011257,2]
[348536471,1736608251073,-500.0,0.00011257,2]
[348536472,1736608251083,-500.0,0.00011257,2]
[348536473,1736608251093,-500.0,0.00011257,2]
[348536474,1736608251103,-223.5,0.00011257,2]
[348536475,1736608251113,-500.0,0.00011257,2]
[348536476,1736608251122,-500.0,0.00011257,2]
[348536477,1736608251132,-500.0,0.00011257,2]
[348536478,1736608251142,-500.0,0.00011257,2]
[348536479,1736608251151,-500.0,0.00011257,2]
[348536480,1736608251161,-500.0,0.00011257,2]
[348536481,1736608251171,-500.0,0.00011257,2]
[348536482,1736608251180,-500.0,0.00011257,2]
[348536483,1736608251190,-500.0,0.00011257,2]
[348536484,1736608251199,-500.0,0.00011257,2]
[348536485,1736608251208,-500.0,0.00011257,2]
[348536486,1736608251218,-500.0,0.00011257,2]
[348536487,1736608251227,-500.0,0.00011257,2]
[348536488,1736608251237,-500.0,0.00011257,2]
[348536489,1736608251247,-411.04462138,0.00011257,2]
[348536490,1736608251257,-563.93,0.00011257,2]
[348536491,1736608251267,-500.0,0.00011257,2]
[348536492,1736608251276,-500.0,0.00011257,2]
[348536493,1736608251286,-631.12,0.00011257,2]
[348536494,1736608251296,-500.0,0.00011257,2]
[348536495,1736608251305,-500.0,0.00011257,2]
[348536496,1736608251315,-500.0,0.00011257,2]
[348536497,1736608251325,-500.0,0.0001126,2]
[348536498,1736608251336,-202.83985635,0.0001126,2]
[348536499,1736608251345,-920.43,0.0001126,2]
[348536500,1736608251355,-551.41,0.00011369,2]
[348536501,1736608251365,-500.0,0.00011369,2]
[348536502,1736608251378,-844.04,0.00011369,2]
[348536503,1736608251388,-500.0,0.00011369,2]
[348536504,1736608251397,-1249.34,0.00011369,2]
[348536505,1736608251407,-693.31,0.00011369,2]
[348536506,1736608251418,-1109.44,0.00011369,2]
[348536507,1736608251428,-515.87,0.00011369,2]
[348536508,1736608251438,-551.85,0.00011369,2]
[348536509,1736608251448,-500.0,0.00011369,2]
[348536510,1736608251458,-500.0,0.00011369,2]
[348536511,1736608251468,-500.0,0.00011369,2]
[348536512,1736608251478,-500.0,0.00011369,2]
[348536513,1736608251488,-500.0,0.00011369,2]
[348536514,1736608251497,-500.0,0.00011369,2]
[348536515,1736608251507,-500.0,0.00011369,2]
[348536516,1736608251516,-607.63,0.00011369,2]
[348536517,1736608251526,-500.0,0.00011369,2]
[348536518,1736608251535,-568.09,0.00011369,2]
[348536519,1736608251546,-500.0,0.00011369,2]
[348536520,1736608251556,-500.0,0.00011369,2]
[348536521,1736608251565,-961.31,0.00011369,2]
[348536522,1736608251575,-3800.68,0.00011369,2]
[348536523,1736608251585,-500.0,0.00011369,2]
[348536524,1736608251595,-202.71905113,0.000114,2]